[Event "*** Titled Tuesday Blitz"]
[Site "Chess.com"]
[Date "2019.12.03"]
[Round "1"]
[White "Manukyan_Artak"]
[Black "Misi_95"]
[Result "0-1"]
[WhiteElo "2337"]
[BlackElo "2703"]
[TimeControl "180+2"]
[EndTime "13:01:58 PST"]
[Termination "Misi_95 won by resignation"]

1. e4 {[%clk 0:03:01.9]} 1... c5 {[%clk 0:03:00.5]} 2. Nf3 {[%clk 0:03:03]} 2...
e6 {[%clk 0:03:01.6]} 3. c3 {[%clk 0:03:04.3]} 3... d5 {[%clk 0:03:01.3]} 4. e5
{[%clk 0:03:05.7]} 4... Nc6 {[%clk 0:03:02]} 5. d4 {[%clk 0:03:07.6]} 5... cxd4
{[%clk 0:03:03.1]} 6. cxd4 {[%clk 0:03:09.5]} 6... Nge7 {[%clk 0:03:04.5]} 7.
Nc3 {[%clk 0:03:08.3]} 7... Nf5 {[%clk 0:03:05.4]} 8. a3 {[%clk 0:03:00]} 8...
Be7 {[%clk 0:03:04.3]} 9. b4 {[%clk 0:02:59.4]} 9... Bd7 {[%clk 0:03:02.8]} 10.
Bb2 {[%clk 0:03:00.5]} 10... O-O {[%clk 0:02:59.8]} 11. Rc1 {[%clk 0:02:59]}
11... Rc8 {[%clk 0:02:59.4]} 12. Na4 {[%clk 0:02:57.2]} 12... f6 {[%clk
0:02:59.6]} 13. Nc5 {[%clk 0:02:56.2]} 13... fxe5 {[%clk 0:02:59.7]} 14. dxe5
{[%clk 0:02:46.2]} 14... Bxc5 {[%clk 0:02:56.1]} 15. Rxc5 {[%clk 0:02:47.1]}
15... Nh4 {[%clk 0:02:57]} 16. Nxh4 {[%clk 0:02:32.5]} 16... Qxh4 {[%clk
0:02:58.9]} 17. g3 {[%clk 0:02:29.4]} 17... Qe4+ {[%clk 0:02:59.1]} 18. Qe2
{[%clk 0:02:27.3]} 18... Qxh1 {[%clk 0:02:59.9]} 0-1

[Event "*** Titled Tuesday Blitz"]
[Site "Chess.com"]
[Date "2019.12.03"]
[Round "1"]
[White "SerGo055"]
[Black "beccrajoy"]
[Result "1-0"]
[WhiteElo "2523"]
[BlackElo "1782"]
[TimeControl "180+2"]
[EndTime "13:03:16 PST"]
[Termination "SerGo055 won by resignation"]

1. d4 {[%clk 0:03:01.9]} 1... d5 {[%clk 0:03:00.4]} 2. Nf3 {[%clk 0:03:03.1]}
2... Nf6 {[%clk 0:03:01.8]} 3. Bf4 {[%clk 0:03:03.4]} 3... c5 {[%clk 0:03:02.5]}
4. e3 {[%clk 0:03:04.3]} 4... Nc6 {[%clk 0:03:03.8]} 5. c3 {[%clk 0:03:05.2]}
5... Qb6 {[%clk 0:03:02.2]} 6. Qb3 {[%clk 0:03:06]} 6... e6 {[%clk 0:03:00.8]}
7. Nbd2 {[%clk 0:03:02.9]} 7... Be7 {[%clk 0:03:01]} 8. Be2 {[%clk 0:03:02.7]}
8... O-O {[%clk 0:03:01.8]} 9. O-O {[%clk 0:03:03.5]} 9... Re8 {[%clk
0:03:01.3]} 10. h3 {[%clk 0:03:03.9]} 10... Nh5 {[%clk 0:02:58.9]} 11. Bh2
{[%clk 0:03:04.6]} 11... Nf6 {[%clk 0:02:56.1]} 12. Ne5 {[%clk 0:03:05]} 12...
Nxe5 {[%clk 0:02:56.1]} 13. Bxe5 {[%clk 0:03:05.5]} 13... c4 {[%clk 0:02:56.8]}
14. Qc2 {[%clk 0:03:02.8]} 14... Bd6 {[%clk 0:02:56.4]} 15. Bxf6 {[%clk
0:03:01.9]} 15... gxf6 {[%clk 0:02:58.3]} 16. b3 {[%clk 0:03:01.9]} 16... cxb3
{[%clk 0:02:57.2]} 17. axb3 {[%clk 0:03:02.5]} 17... e5 {[%clk 0:02:58.7]} 18.
Bd3 {[%clk 0:03:00.6]} 18... e4 {[%clk 0:02:58.4]} 19. Be2 {[%clk 0:03:01.9]}
19... Kh8 {[%clk 0:02:58.4]} 20. c4 {[%clk 0:03:02.6]} 20... Qc7 {[%clk
0:02:56.7]} 21. Rac1 {[%clk 0:03:00.7]} 21... Rg8 {[%clk 0:02:56.9]} 22. Kh1
{[%clk 0:02:59.2]} 22... Be6 {[%clk 0:02:50.7]} 23. cxd5 {[%clk 0:02:55.8]}
23... Qxc2 {[%clk 0:02:49.3]} 24. Rxc2 {[%clk 0:02:57.7]} 24... Bxd5 {[%clk
0:02:50.8]} 25. Bc4 {[%clk 0:02:58]} 25... Bxc4 {[%clk 0:02:49.4]} 26. bxc4
{[%clk 0:02:59.4]} 26... Rac8 {[%clk 0:02:50]} 27. Nxe4 {[%clk 0:02:59.7]} 27...
Be7 {[%clk 0:02:48.6]} 28. c5 {[%clk 0:02:58.1]} 28... f5 {[%clk 0:02:49.1]} 29.
Ng3 {[%clk 0:02:58.7]} 29... f4 {[%clk 0:02:45.4]} 30. exf4 {[%clk 0:02:57.6]}
30... Bf6 {[%clk 0:02:46.9]} 31. Rd1 {[%clk 0:02:54.7]} 31... Rgd8 {[%clk
0:02:47.5]} 32. d5 {[%clk 0:02:55.4]} 32... Bh4 {[%clk 0:02:41.3]} 33. Nf5
{[%clk 0:02:55.4]} 33... Bf6 {[%clk 0:02:39.6]} 34. g4 {[%clk 0:02:52.3]} 34...
Kg8 {[%clk 0:02:38.4]} 35. g5 {[%clk 0:02:51.5]} 35... Bh8 {[%clk 0:02:38.8]}
36. Ne7+ {[%clk 0:02:52.2]} 1-0

[Event "*** Titled Tuesday Blitz"]
[Site "Chess.com"]
[Date "2019.12.03"]
[Round "1"]
[White "Tiqr777"]
[Black "LonesomeGeorge1"]
[Result "1-0"]
[WhiteElo "2636"]
[BlackElo "2304"]
[TimeControl "180+2"]
[EndTime "13:03:28 PST"]
[Termination "Tiqr777 won by resignation"]

1. Nf3 {[%clk 0:03:01.9]} 1... Nf6 {[%clk 0:03:00.6]} 2. g3 {[%clk 0:03:03]}
2... g6 {[%clk 0:03:01.8]} 3. Bg2 {[%clk 0:03:04.3]} 3... Bg7 {[%clk 0:03:03.3]}
4. O-O {[%clk 0:03:05.6]} 4... O-O {[%clk 0:03:04.9]} 5. d3 {[%clk 0:03:06.8]}
5... c5 {[%clk 0:03:04.4]} 6. c4 {[%clk 0:03:06.9]} 6... Nc6 {[%clk 0:03:04.1]}
7. Nc3 {[%clk 0:03:08]} 7... Rb8 {[%clk 0:03:01.9]} 8. a3 {[%clk 0:03:07.2]}
8... a5 {[%clk 0:02:59.8]} 9. Ne1 {[%clk 0:03:05.9]} 9... Ne8 {[%clk 0:02:59.2]}
10. Nc2 {[%clk 0:03:06.3]} 10... Nc7 {[%clk 0:02:59.8]} 11. Bd2 {[%clk
0:03:07.3]} 11... b5 {[%clk 0:02:54.3]} 12. cxb5 {[%clk 0:03:02.7]} 12... Nxb5
{[%clk 0:02:56.2]} 13. Na4 {[%clk 0:03:03.6]} 13... Qc7 {[%clk 0:02:42.4]} 14.
Rc1 {[%clk 0:02:51.2]} 14... d6 {[%clk 0:02:39.8]} 15. b4 {[%clk 0:02:50]} 15...
axb4 {[%clk 0:02:34]} 16. axb4 {[%clk 0:02:51.4]} 16... Ra8 {[%clk 0:02:17]} 17.
Ne3 {[%clk 0:02:50.1]} 17... Ncd4 {[%clk 0:01:58]} 18. Bxa8 {[%clk 0:02:46.5]}
18... Qa7 {[%clk 0:01:57.6]} 19. Bg2 {[%clk 0:02:44.8]} 19... Be6 {[%clk
0:01:56.3]} 20. Nd5 {[%clk 0:02:37.8]} 20... Bxd5 {[%clk 0:01:47.2]} 21. Bxd5
{[%clk 0:02:37.4]} 21... Nxe2+ {[%clk 0:01:48.6]} 22. Qxe2 {[%clk 0:02:36.9]}
22... Qxa4 {[%clk 0:01:49.7]} 23. bxc5 {[%clk 0:02:36]} 23... Nd4 {[%clk
0:01:50.4]} 24. Qd1 {[%clk 0:02:36.7]} 1-0

[Event "*** Titled Tuesday Blitz"]
[Site "Chess.com"]
[Date "2019.12.03"]
[Round "1"]
[White "1random"]
[Black "JosefineHeinemann"]
[Result "1-0"]
[WhiteElo "2788"]
[BlackElo "2424"]
[TimeControl "180+2"]
[EndTime "13:04:18 PST"]
[Termination "1random won by resignation"]

1. d4 {[%clk 0:03:01.9]} 1... Nf6 {[%clk 0:03:00.4]} 2. Nf3 {[%clk 0:03:02.8]}
2... e6 {[%clk 0:03:00.9]} 3. c4 {[%clk 0:03:03.9]} 3... b6 {[%clk 0:03:01.4]}
4. g3 {[%clk 0:02:49.3]} 4... Ba6 {[%clk 0:03:01.8]} 5. b3 {[%clk 0:02:47]} 5...
Bb4+ {[%clk 0:03:01.4]} 6. Bd2 {[%clk 0:02:44.2]} 6... Be7 {[%clk 0:03:01.7]} 7.
Bg2 {[%clk 0:02:43.5]} 7... Bb7 {[%clk 0:03:02.7]} 8. O-O {[%clk 0:02:44.7]}
8... O-O {[%clk 0:02:59.7]} 9. Nc3 {[%clk 0:02:46]} 9... d5 {[%clk 0:02:55.2]}
10. cxd5 {[%clk 0:02:47.5]} 10... Nxd5 {[%clk 0:02:55.2]} 11. Re1 {[%clk
0:02:34.1]} 11... c5 {[%clk 0:02:54.9]} 12. e4 {[%clk 0:02:33.7]} 12... Nxc3
{[%clk 0:02:55.4]} 13. Bxc3 {[%clk 0:02:35.6]} 13... cxd4 {[%clk 0:02:56.9]} 14.
Nxd4 {[%clk 0:02:35.6]} 14... Nc6 {[%clk 0:02:57.4]} 15. Nxc6 {[%clk 0:02:24.9]}
15... Bxc6 {[%clk 0:02:59.3]} 16. Qg4 {[%clk 0:02:22.2]} 16... g6 {[%clk
0:02:49]} 17. Red1 {[%clk 0:02:19.4]} 17... Qc7 {[%clk 0:02:49.7]} 18. Rac1
{[%clk 0:02:18.3]} 18... Rac8 {[%clk 0:02:49.8]} 19. h4 {[%clk 0:02:07.2]} 19...
Rfd8 {[%clk 0:02:49.9]} 20. Bd2 {[%clk 0:01:58.6]} 20... Qb7 {[%clk 0:02:48.3]}
21. h5 {[%clk 0:01:51.9]} 21... Bf6 {[%clk 0:02:47.8]} 22. e5 {[%clk 0:01:46.3]}
22... Bg7 {[%clk 0:02:47.9]} 23. Rxc6 {[%clk 0:01:33.3]} 23... Rxc6 {[%clk
0:02:48.3]} 24. Bg5 {[%clk 0:01:12.8]} 24... Rxd1+ {[%clk 0:02:47.2]} 25. Qxd1
{[%clk 0:01:14.7]} 25... Bxe5 {[%clk 0:02:31.5]} 26. Qd8+ {[%clk 0:01:13.4]} 1-0

[Event "*** Titled Tuesday Blitz"]
[Site "Chess.com"]
[Date "2019.12.03"]
[Round "1"]
[White "Tjktiger"]
[Black "josiur"]
[Result "0-1"]
[WhiteElo "2755"]
[BlackElo "2428"]
[TimeControl "180+2"]
[EndTime "13:04:40 PST"]
[Termination "josiur won by resignation"]

1. c4 {[%clk 0:03:01.3]} 1... c5 {[%clk 0:03:00]} 2. g3 {[%clk 0:03:02]} 2...
Nc6 {[%clk 0:03:01.1]} 3. Bg2 {[%clk 0:03:03.9]} 3... g6 {[%clk 0:03:02.3]} 4.
Nc3 {[%clk 0:03:05.7]} 4... Bg7 {[%clk 0:03:03.7]} 5. Nf3 {[%clk 0:03:07.6]}
5... e5 {[%clk 0:03:04.8]} 6. O-O {[%clk 0:03:07.7]} 6... Nge7 {[%clk
0:03:06.7]} 7. d3 {[%clk 0:03:09.3]} 7... O-O {[%clk 0:03:05.8]} 8. a3 {[%clk
0:03:10.7]} 8... d5 {[%clk 0:03:06.3]} 9. cxd5 {[%clk 0:03:10.7]} 9... Nxd5
{[%clk 0:03:08.2]} 10. Nxd5 {[%clk 0:03:12.6]} 10... Qxd5 {[%clk 0:03:09.5]} 11.
Be3 {[%clk 0:03:14.5]} 11... Qd6 {[%clk 0:03:08.4]} 12. Rc1 {[%clk 0:03:14.9]}
12... b6 {[%clk 0:03:09.1]} 13. b4 {[%clk 0:03:16.2]} 13... cxb4 {[%clk
0:02:55]} 14. Rxc6 {[%clk 0:03:04.8]} 14... Qxc6 {[%clk 0:02:54.7]} 15. Nd2
{[%clk 0:03:06.4]} 15... Qb5 {[%clk 0:02:44.5]} 16. a4 {[%clk 0:02:58.9]} 16...
Qa5 {[%clk 0:02:32.3]} 17. Bxa8 {[%clk 0:02:49.3]} 17... Bd7 {[%clk 0:02:30.7]}
18. Nc4 {[%clk 0:02:42.5]} 18... Qxa4 {[%clk 0:02:27.7]} 19. Qxa4 {[%clk
0:02:42.7]} 19... Bxa4 {[%clk 0:02:29.6]} 20. Bd5 {[%clk 0:02:44.6]} 20... Rd8
{[%clk 0:02:11.3]} 21. Ra1 {[%clk 0:02:39.3]} 21... b5 {[%clk 0:02:08]} 22. Bf3
{[%clk 0:02:24.5]} 22... e4 {[%clk 0:02:08]} 0-1

[Event "*** Titled Tuesday Blitz"]
[Site "Chess.com"]
[Date "2019.12.03"]
[Round "1"]
[White "julinha97"]
[Black "RitvarsReimanis"]
[Result "0-1"]
[WhiteElo "2208"]
[BlackElo "2573"]
[TimeControl "180+2"]
[EndTime "13:04:41 PST"]
[Termination "RitvarsReimanis won by resignation"]

1. e4 {[%clk 0:03:01.4]} 1... c5 {[%clk 0:03:00.6]} 2. Nf3 {[%clk 0:03:02.1]}
2... Nc6 {[%clk 0:03:01.7]} 3. d4 {[%clk 0:03:02.9]} 3... cxd4 {[%clk
0:03:02.7]} 4. Nxd4 {[%clk 0:03:04.8]} 4... Nf6 {[%clk 0:03:04.1]} 5. Nc3 {[%clk
0:03:04.8]} 5... d6 {[%clk 0:03:05.5]} 6. Bg5 {[%clk 0:03:05]} 6... e6 {[%clk
0:03:06.6]} 7. Qd2 {[%clk 0:03:05.5]} 7... a6 {[%clk 0:03:07.2]} 8. O-O-O {[%clk
0:03:04.7]} 8... Bd7 {[%clk 0:03:08.5]} 9. f3 {[%clk 0:03:02.4]} 9... h6 {[%clk
0:03:09.4]} 10. Be3 {[%clk 0:03:02.6]} 10... Rc8 {[%clk 0:03:10.3]} 11. g4
{[%clk 0:03:02.6]} 11... b5 {[%clk 0:03:10.9]} 12. h4 {[%clk 0:03:02.1]} 12...
Nxd4 {[%clk 0:03:11.8]} 13. Bxd4 {[%clk 0:03:02.1]} 13... Qa5 {[%clk 0:03:10.6]}
14. Kb1 {[%clk 0:03:00.4]} 14... b4 {[%clk 0:03:11.6]} 15. Ne2 {[%clk
0:02:55.8]} 15... Ba4 {[%clk 0:03:08.2]} 16. b3 {[%clk 0:02:52.6]} 16... Bc6
{[%clk 0:02:56.1]} 17. Nc1 {[%clk 0:02:39.9]} 17... e5 {[%clk 0:02:51.4]} 18.
Be3 {[%clk 0:02:35.7]} 18... Bxe4 {[%clk 0:02:17.2]} 19. fxe4 {[%clk 0:02:22.2]}
19... Nxe4 {[%clk 0:02:17.9]} 20. Qe1 {[%clk 0:02:10.6]} 20... Nc3+ {[%clk
0:02:13.9]} 21. Ka1 {[%clk 0:02:11.2]} 21... Nxa2 {[%clk 0:02:06.8]} 22. Bb6
{[%clk 0:01:46.6]} 22... Qa3 {[%clk 0:01:58.7]} 23. Nxa2 {[%clk 0:01:17.6]}
23... Rxc2 {[%clk 0:01:58.7]} 0-1

[Event "*** Titled Tuesday Blitz"]
[Site "Chess.com"]
[Date "2019.12.03"]
[Round "1"]
[White "marcodobrikov"]
[Black "IgorBjelobrk"]
[Result "0-1"]
[WhiteElo "2341"]
[BlackElo "2706"]
[TimeControl "180+2"]
[EndTime "13:04:50 PST"]
[Termination "IgorBjelobrk won by resignation"]

1. e4 {[%clk 0:03:01.2]} 1... e5 {[%clk 0:03:00.8]} 2. Nf3 {[%clk 0:02:59.7]}
2... Nc6 {[%clk 0:03:02.1]} 3. d4 {[%clk 0:03:00.3]} 3... exd4 {[%clk
0:03:02.3]} 4. Nxd4 {[%clk 0:02:58.2]} 4... Nf6 {[%clk 0:03:03.3]} 5. Nc3 {[%clk
0:02:56.8]} 5... Bb4 {[%clk 0:03:03.5]} 6. Nxc6 {[%clk 0:02:56.2]} 6... bxc6
{[%clk 0:03:04.4]} 7. Bd3 {[%clk 0:02:57]} 7... d5 {[%clk 0:03:05.2]} 8. exd5
{[%clk 0:02:55.8]} 8... cxd5 {[%clk 0:03:06.2]} 9. O-O {[%clk 0:02:57.7]} 9...
O-O {[%clk 0:03:06.7]} 10. Ne2 {[%clk 0:02:56.3]} 10... c6 {[%clk 0:03:06.6]}
11. c3 {[%clk 0:02:56.8]} 11... Bd6 {[%clk 0:03:06.7]} 12. h3 {[%clk 0:02:57.2]}
12... h6 {[%clk 0:03:07.1]} 13. Bf4 {[%clk 0:02:57.6]} 13... Rb8 {[%clk
0:03:06.9]} 14. Qc2 {[%clk 0:02:56.5]} 14... Rb7 {[%clk 0:03:04.8]} 15. Bxd6
{[%clk 0:02:57]} 15... Qxd6 {[%clk 0:03:05.1]} 16. Nd4 {[%clk 0:02:58.2]} 16...
c5 {[%clk 0:03:03.4]} 17. Nf3 {[%clk 0:02:58.8]} 17... c4 {[%clk 0:02:59.8]} 18.
Bf5 {[%clk 0:02:59.4]} 18... Bxf5 {[%clk 0:02:59.7]} 19. Qxf5 {[%clk 0:03:01.3]}
19... Rxb2 {[%clk 0:03:00.5]} 20. Rfd1 {[%clk 0:02:56.6]} 20... Qa3 {[%clk
0:02:55.3]} 21. Rac1 {[%clk 0:02:43.9]} 21... Rxa2 {[%clk 0:02:50.1]} 22. Nd4
{[%clk 0:02:44.6]} 22... Rd2 {[%clk 0:02:37.2]} 23. Nb5 {[%clk 0:02:37.7]} 23...
Rxd1+ {[%clk 0:02:37.6]} 24. Rxd1 {[%clk 0:02:39.6]} 24... Qb3 {[%clk
0:02:37.2]} 25. Rb1 {[%clk 0:02:40.4]} 25... Qa2 {[%clk 0:02:35.1]} 26. Re1
{[%clk 0:02:36.1]} 26... a6 {[%clk 0:02:29.6]} 27. Nd4 {[%clk 0:02:34.6]} 27...
Qd2 {[%clk 0:02:27.8]} 28. Re3 {[%clk 0:02:35.1]} 28... Ne4 {[%clk 0:02:13.5]}
29. Rf3 {[%clk 0:02:15.1]} 29... Nxc3 {[%clk 0:02:08.5]} 30. Ne6 {[%clk
0:02:15.8]} 30... Qe1+ {[%clk 0:02:05.9]} 31. Kh2 {[%clk 0:02:13.8]} 31... Qxe6
{[%clk 0:02:06.5]} 32. Qc2 {[%clk 0:01:59.6]} 32... Ne4 {[%clk 0:02:06.1]} 33.
Qb2 {[%clk 0:01:59.7]} 33... c3 {[%clk 0:02:04.6]} 34. Qb4 {[%clk 0:02:00.1]}
34... Rc8 {[%clk 0:02:05]} 35. Qd4 {[%clk 0:01:59.9]} 35... c2 {[%clk
0:02:04.8]} 36. Rg3 {[%clk 0:01:59.6]} 36... Nxg3 {[%clk 0:02:05.2]} 0-1

[Event "*** Titled Tuesday Blitz"]
[Site "Chess.com"]
[Date "2019.12.03"]
[Round "1"]
[White "olksuna"]
[Black "GremioPrudente"]
[Result "1-0"]
[WhiteElo "2602"]
[BlackElo "2246"]
[TimeControl "180+2"]
[EndTime "13:05:03 PST"]
[Termination "olksuna won on time"]

1. Nf3 {[%clk 0:03:01.9]} 1... d5 {[%clk 0:03:00.2]} 2. g3 {[%clk 0:03:03]} 2...
c6 {[%clk 0:03:00]} 3. Bg2 {[%clk 0:03:04.3]} 3... Nf6 {[%clk 0:03:01.2]} 4. O-O
{[%clk 0:03:05.5]} 4... Bf5 {[%clk 0:03:01.5]} 5. c4 {[%clk 0:03:06.1]} 5... e6
{[%clk 0:03:01.8]} 6. cxd5 {[%clk 0:03:04.8]} 6... exd5 {[%clk 0:03:02.4]} 7. d3
{[%clk 0:03:03.4]} 7... Nbd7 {[%clk 0:03:01.8]} 8. Nc3 {[%clk 0:03:00]} 8... h6
{[%clk 0:03:00.8]} 9. e4 {[%clk 0:02:59]} 9... dxe4 {[%clk 0:02:42.3]} 10. dxe4
{[%clk 0:02:58.2]} 10... Be6 {[%clk 0:02:21]} 11. Nd4 {[%clk 0:02:44.8]} 11...
Be7 {[%clk 0:01:48.8]} 12. Nxe6 {[%clk 0:02:44.4]} 12... fxe6 {[%clk 0:01:49.8]}
13. Be3 {[%clk 0:02:34.7]} 13... Nb6 {[%clk 0:01:25.5]} 14. Qb3 {[%clk
0:02:30.1]} 14... O-O {[%clk 0:00:52.8]} 15. Rad1 {[%clk 0:02:20.7]} 15... Qc7
{[%clk 0:00:13.2]} 16. Qxe6+ {[%clk 0:02:13.5]} 16... Kh8 {[%clk 0:00:13.6]} 17.
Bf4 {[%clk 0:02:15.2]} 1-0

[Event "*** Titled Tuesday Blitz"]
[Site "Chess.com"]
[Date "2019.12.03"]
[Round "1"]
[White "boasovietica"]
[Black "MatthewG-p4p"]
[Result "0-1"]
[WhiteElo "2392"]
[BlackElo "2759"]
[TimeControl "180+2"]
[EndTime "13:05:11 PST"]
[Termination "MatthewG-p4p won by checkmate"]

1. e4 {[%clk 0:03:01.3]} 1... e6 {[%clk 0:03:00.2]} 2. b3 {[%clk 0:02:59.6]}
2... d5 {[%clk 0:02:58.9]} 3. Bb2 {[%clk 0:02:57.2]} 3... Nf6 {[%clk 0:02:59.5]}
4. e5 {[%clk 0:02:57.5]} 4... Nfd7 {[%clk 0:03:00.6]} 5. Qg4 {[%clk 0:02:58.3]}
5... c5 {[%clk 0:03:01.3]} 6. Nf3 {[%clk 0:02:58.1]} 6... Nc6 {[%clk 0:03:02.2]}
7. Bb5 {[%clk 0:02:55.9]} 7... Qb6 {[%clk 0:02:59]} 8. Bxc6 {[%clk 0:02:52.5]}
8... Qxc6 {[%clk 0:02:59.6]} 9. O-O {[%clk 0:02:53.4]} 9... b6 {[%clk 0:02:45]}
10. Nc3 {[%clk 0:02:51.6]} 10... d4 {[%clk 0:02:41.1]} 11. Ne4 {[%clk
0:02:46.7]} 11... Bb7 {[%clk 0:02:41.9]} 12. Rfe1 {[%clk 0:02:46.9]} 12... Qd5
{[%clk 0:02:34.8]} 13. c3 {[%clk 0:02:36.2]} 13... Nxe5 {[%clk 0:02:06.4]} 14.
Nxe5 {[%clk 0:02:33.3]} 14... Qxe5 {[%clk 0:02:08.3]} 15. cxd4 {[%clk 0:02:27]}
15... cxd4 {[%clk 0:02:10.2]} 16. Rac1 {[%clk 0:02:25.3]} 16... f5 {[%clk
0:01:53.3]} 17. Qh5+ {[%clk 0:02:06.4]} 17... g6 {[%clk 0:01:52.9]} 18. Qg5
{[%clk 0:01:59.3]} 18... Be7 {[%clk 0:01:51.6]} 19. Qh6 {[%clk 0:01:59.3]} 19...
fxe4 {[%clk 0:01:50.8]} 20. d3 {[%clk 0:01:48.3]} 20... Bg5 {[%clk 0:01:48.9]}
21. Qh3 {[%clk 0:01:46.2]} 21... Bxc1 {[%clk 0:01:40.7]} 22. Rxc1 {[%clk
0:01:46.8]} 22... O-O {[%clk 0:01:36.3]} 23. g3 {[%clk 0:01:34.7]} 23... exd3
{[%clk 0:01:34.9]} 24. Bxd4 {[%clk 0:01:14.2]} 24... Qxd4 {[%clk 0:01:32.4]} 25.
Rc7 {[%clk 0:01:15]} 25... Qxf2# {[%clk 0:01:32.3]} 0-1

[Event "*** Titled Tuesday Blitz"]
[Site "Chess.com"]
[Date "2019.12.03"]
[Round "1"]
[White "DanielNaroditsky"]
[Black "MaestroASK"]
[Result "0-1"]
[WhiteElo "2987"]
[BlackElo "2593"]
[TimeControl "180+2"]
[EndTime "13:05:16 PST"]
[Termination "MaestroASK won by resignation"]

1. Nf3 {[%clk 0:03:00.2]} 1... d6 {[%clk 0:02:59.8]} 2. d4 {[%clk 0:03:01.3]}
2... g6 {[%clk 0:03:01]} 3. e4 {[%clk 0:02:58.7]} 3... Bg7 {[%clk 0:03:01]} 4.
Nc3 {[%clk 0:02:58.8]} 4... c6 {[%clk 0:03:00.8]} 5. Be3 {[%clk 0:02:58.6]} 5...
e5 {[%clk 0:03:01.1]} 6. Bc4 {[%clk 0:02:55.8]} 6... Qe7 {[%clk 0:02:57.3]} 7.
a4 {[%clk 0:02:53.4]} 7... Nd7 {[%clk 0:02:53.3]} 8. O-O {[%clk 0:02:53.7]} 8...
f6 {[%clk 0:02:52.4]} 9. Qd2 {[%clk 0:02:52.4]} 9... Qf8 {[%clk 0:02:51.6]} 10.
Rfd1 {[%clk 0:02:43]} 10... Bh6 {[%clk 0:02:51.2]} 11. Bxg8 {[%clk 0:02:39.9]}
11... Bxe3 {[%clk 0:02:50.4]} 12. fxe3 {[%clk 0:02:41.8]} 12... Rxg8 {[%clk
0:02:45.3]} 13. a5 {[%clk 0:02:41.2]} 13... Qe7 {[%clk 0:02:43.5]} 14. a6 {[%clk
0:02:27.8]} 14... b6 {[%clk 0:02:42.6]} 15. Qd3 {[%clk 0:02:27.2]} 15... Kf8
{[%clk 0:02:40.4]} 16. Qc4 {[%clk 0:02:26.7]} 16... Nb8 {[%clk 0:02:40.2]} 17.
Rd2 {[%clk 0:02:25.6]} 17... Kg7 {[%clk 0:02:39.3]} 18. d5 {[%clk 0:02:14.2]}
18... c5 {[%clk 0:02:39.4]} 19. Rf2 {[%clk 0:02:15.4]} 19... Rf8 {[%clk
0:02:38.4]} 20. Ne1 {[%clk 0:02:11.9]} 20... Bd7 {[%clk 0:02:14.2]} 21. b4
{[%clk 0:02:07.7]} 21... Qe8 {[%clk 0:02:10.4]} 22. b5 {[%clk 0:02:05.7]} 22...
Bc8 {[%clk 0:02:07.4]} 23. Nd3 {[%clk 0:02:03.9]} 23... Nd7 {[%clk 0:02:06.1]}
24. Raf1 {[%clk 0:02:04.8]} 24... Qe7 {[%clk 0:02:05.7]} 25. Nb2 {[%clk
0:02:05.5]} 25... Rf7 {[%clk 0:02:05.3]} 26. Qd3 {[%clk 0:02:06.9]} 26... Nf8
{[%clk 0:02:05.2]} 27. Nc4 {[%clk 0:02:08.5]} 27... Bd7 {[%clk 0:02:04.5]} 28.
Ne2 {[%clk 0:02:07.8]} 28... h5 {[%clk 0:02:01.9]} 29. Nc3 {[%clk 0:02:07.9]}
29... Nh7 {[%clk 0:02:01.1]} 30. Qe2 {[%clk 0:02:08.3]} 30... Ng5 {[%clk
0:01:59.3]} 31. Nd2 {[%clk 0:02:06.7]} 31... Nh7 {[%clk 0:01:59.1]} 32. Nf3
{[%clk 0:02:08.1]} 32... Bg4 {[%clk 0:01:56.3]} 33. h3 {[%clk 0:02:09.4]} 33...
Bxf3 {[%clk 0:01:56.2]} 34. gxf3 {[%clk 0:02:10.4]} 34... f5 {[%clk 0:01:55]}
35. Kh2 {[%clk 0:02:11]} 35... f4 {[%clk 0:01:44.8]} 36. exf4 {[%clk 0:02:12.5]}
36... exf4 {[%clk 0:01:44.6]} 37. Qe3 {[%clk 0:02:14.1]} 37... fxe3 {[%clk
0:01:44]} 38. Rg2 {[%clk 0:02:02.5]} 38... Qe5+ {[%clk 0:01:42.4]} 39. f4 {[%clk
0:02:03.8]} 0-1

[Event "*** Titled Tuesday Blitz"]
[Site "Chess.com"]
[Date "2019.12.03"]
[Round "1"]
[White "sergeikim"]
[Black "jefferyx"]
[Result "0-1"]
[WhiteElo "2488"]
[BlackElo "2912"]
[TimeControl "180+2"]
[EndTime "13:05:17 PST"]
[Termination "jefferyx won by resignation"]

1. d4 {[%clk 0:03:01.5]} 1... g6 {[%clk 0:02:57.3]} 2. c4 {[%clk 0:03:02.3]}
2... Bg7 {[%clk 0:02:58.7]} 3. Nc3 {[%clk 0:03:02.9]} 3... d6 {[%clk 0:03:00.1]}
4. e4 {[%clk 0:03:02.4]} 4... e5 {[%clk 0:02:56.6]} 5. Nge2 {[%clk 0:03:01.5]}
5... Nd7 {[%clk 0:02:51.9]} 6. d5 {[%clk 0:03:00.4]} 6... a5 {[%clk 0:02:51.4]}
7. Ng3 {[%clk 0:03:00.3]} 7... h5 {[%clk 0:02:51.3]} 8. Be2 {[%clk 0:03:00.6]}
8... h4 {[%clk 0:02:51.9]} 9. Nf1 {[%clk 0:03:00.9]} 9... Nc5 {[%clk 0:02:52.4]}
10. Be3 {[%clk 0:02:58.7]} 10... Nf6 {[%clk 0:02:52.2]} 11. h3 {[%clk
0:02:57.7]} 11... Nfxe4 {[%clk 0:02:45.2]} 12. Nxe4 {[%clk 0:02:53.9]} 12...
Nxe4 {[%clk 0:02:47.1]} 13. Nd2 {[%clk 0:02:50.8]} 13... Nxd2 {[%clk 0:02:35.4]}
14. Qxd2 {[%clk 0:02:51.7]} 14... O-O {[%clk 0:02:37.3]} 15. O-O {[%clk
0:02:51.5]} 15... Re8 {[%clk 0:02:37]} 16. Rae1 {[%clk 0:02:45.8]} 16... Bf5
{[%clk 0:02:37.7]} 17. c5 {[%clk 0:02:44.9]} 17... dxc5 {[%clk 0:02:30]} 18.
Bxc5 {[%clk 0:02:45]} 18... Qd7 {[%clk 0:02:29.6]} 19. Rc1 {[%clk 0:02:39.2]}
19... Rad8 {[%clk 0:02:27.4]} 20. Rfd1 {[%clk 0:02:39.4]} 20... Be4 {[%clk
0:02:12.5]} 21. d6 {[%clk 0:02:37.2]} 21... cxd6 {[%clk 0:02:11.7]} 22. Bb6
{[%clk 0:02:34.5]} 22... Rc8 {[%clk 0:02:11]} 23. f3 {[%clk 0:02:16]} 23... Rxc1
{[%clk 0:02:09.4]} 24. Rxc1 {[%clk 0:02:15.4]} 24... Bc6 {[%clk 0:02:11.3]} 25.
Bxa5 {[%clk 0:02:13.4]} 25... d5 {[%clk 0:02:12.1]} 26. b3 {[%clk 0:02:03.5]}
26... d4 {[%clk 0:02:13.3]} 27. Bd3 {[%clk 0:02:03.7]} 27... Qe7 {[%clk
0:01:55]} 28. Re1 {[%clk 0:01:59.9]} 28... Kh7 {[%clk 0:01:53.5]} 29. a4 {[%clk
0:01:55.9]} 29... Bh6 {[%clk 0:01:54.3]} 30. Qe2 {[%clk 0:01:56.7]} 30... f5
{[%clk 0:01:53.6]} 31. Bd2 {[%clk 0:01:46.3]} 31... e4 {[%clk 0:01:46.8]} 32.
Bxh6 {[%clk 0:01:43.8]} 32... Kxh6 {[%clk 0:01:48.7]} 33. Bc4 {[%clk 0:01:42]}
33... Qg5 {[%clk 0:01:48.6]} 34. fxe4 {[%clk 0:01:36.4]} 34... Rxe4 {[%clk
0:01:50.5]} 0-1